Cogmind - Beta 14 @@@ ROGUE MODE // 2024.10.31 @ 11:11:26 Player: jimmyl Result: Destroyed by Y-54 Guardian with Gatling Laser Performance ------------- Evolutions (3) 1500 Regions Visited (9) 1800 Robots Destroyed (110) 550 Value Destroyed (4059) 4059 Prototype IDs (14) 280 Alien Tech Used (0) 0 Bonus (1898) 1898 TOTAL SCORE: 10087 Bonus ------- High Alert Combat Kills 373 Follower Combat Kills 325 Entered Garrisons 200 Used RIF Installer 1000 Cogmind --------- Core Integrity 0/700 Matter 276/300 Energy 5/100 System Corruption 9% Temperature Cool (12) Movement Treading (250) Ox1 Location -7/Storage Parts ------- > --- POWER (2) -------- (None) > --- PROPULSION (3) --- Armored Heavy Treads > --- UTILITY (6) ------ Advanced Heat Sink Huge Storage Unit Advanced Targeting Computer Graphene Brace Relay Coupler [Sentry] (22) > --- WEAPON (2) ------- Cooled Particle Cannon Remote Datajack > --- INVENTORY (25) --- Improved Heavy Treads Improved Heavy Treads Huge Storage Unit Experimental Sensor Array Improved Signal Interpreter Advanced Transmission Jammer Graphene Brace Graphene Brace Relay Coupler [Grunt] (22) Relay Coupler [Behemoth] (12) High-powered Field Laser Improved Spread Laser Guided EMP Blaster Plasma Cutter Heavy Flail Peak State ------------ > --- POWER ------------ Improved Deuterium Engine Light Quantum Reactor > --- PROPULSION ------- Armored Treads Improved Heavy Treads > --- UTILITY ---------- Advanced Heat Sink Cooling System Huge Storage Unit Advanced Targeting Computer Improved Light Armor Plating Graphene Brace > --- WEAPON ----------- Cooled Particle Cannon Cooled Particle Cannon > --- INVENTORY -------- Improved Heavy Treads Improved Heavy Treads Armored Heavy Treads Thermal Generator Huge Storage Unit Experimental Sensor Array Improved Signal Interpreter Advanced Transmission Jammer Improved Light Armor Plating Graphene Brace Graphene Brace Relay Coupler [Grunt] Relay Coupler [Sentry] Relay Coupler [Behemoth] Heavy EM Shotgun High-powered Field Laser Improved Spread Laser Cooled Particle Cannon Cooled Particle Cannon Remote Datajack Plasma Cutter Heavy Flail [Rating: 74] Favorites ----------- Power Light Antimatter Reactor Engine Ion Engine Power Core Light Nuclear Core Reactor Light Antimatter Reactor Propulsion Wheel Treads Improved Heavy Treads Leg Aluminum Leg Wheel Wheel Utility Huge Storage Unit Device Graphene Brace Storage Huge Storage Unit Processor Advanced Targeting Computer Hackware Relay Coupler [Sentry] Protection Hardened Light Armor Plating Weapon Cooled Particle Cannon Energy Gun Beamcaster Energy Cannon Cooled Particle Cannon Ballistic Gun Light Assault Rifle Ballistic Cannon Flak Cannon Launcher Shock Bomb Launcher Special Weapon Plasma Cutter Impact Weapon Heavy Flail Build | -11 -10 -10 -9 -9 -8 -7 -7 -7 -7 ------- Run | Yrd Mat Min Mat Min Mat Fac Gar Fac Sto Slots Evolved 6 | . . . 2 . 2 2 . . . Power 1 | . . . 1 . . . . . . Propulsion 1 | . . . . . . 1 . . . Utility 4 | . . . 1 . 2 1 . . . Weapon . | . . . . . . . . . . Parts Attached 105 | . 9 3 1 5 26 13 26 . 22 Power 12 | . 1 1 . . 4 1 2 . 3 Engine 6 | . 1 . . . 4 . . . 1 Core 4 | . . 1 . . . 1 . . 2 Reactor 2 | . . . . . . . 2 . . Propulsion 19 | . 4 . . . 4 4 6 . 1 Treads 7 | . 2 . . . 1 1 2 . 1 Leg 3 | . . . . . . . 3 . . Wheel 9 | . 2 . . . 3 3 1 . . Hover . | . . . . . . . . . . Flight . | . . . . . . . . . . Utility 24 | . 2 1 1 . 7 4 5 . 4 Device 6 | . . . . . 1 2 2 . 1 Storage 2 | . 1 . . . 1 . . . . Processor 5 | . 1 . . . 3 . 1 . . Hackware 1 | . . . . . . . . . 1 Protection 10 | . . 1 1 . 2 2 2 . 2 Artifact . | . . . . . . . . . . Weapon 50 | . 2 1 . 5 11 4 13 . 14 Energy Gun 18 | . 1 . . . 3 1 9 . 4 Energy Cannon 14 | . . . . . 4 2 1 . 7 Ballistic Gun 6 | . 1 1 . 3 . . . . 1 Ballistic Cannon 3 | . . . . . 2 1 . . . Launcher 6 | . . . . 2 2 . 1 . 1 Special Weapon 2 | . . . . . . . 1 . 1 Impact Weapon 1 | . . . . . . . 1 . . Slashing Weapon . | . . . . . . . . . . Piercing Weapon . | . . . . . . . . . . Special Melee Weapon . | . . . . . . . . . . Unidentified Prototypes 11 | . . . . . 3 2 . . 6 Corrupted Parts 2 | . . . . . . . 1 . 1 System Corruption 3 | . . . . . . . 2 . 1 Parts Lost 46 | . 2 . . 1 14 1 17 . 11 Power 10 | . . . . . 4 . 2 . 4 Propulsion 13 | . . . . . 4 1 6 . 2 Utility 12 | . . . . 1 3 . 5 . 3 Weapon 11 | . 2 . . . 3 . 4 . 2 Highest Loss Streak 9 | . 2 . . 1 9 1 3 . 4 To Critical Strikes . | . . . . . . . . . . Average Slot Usage (%) 82 | . 94 99 88 77 76 71 81 76 82 Engine 3 | . 14 10 . . 4 . . . 3 Core 2 | . . 4 11 11 1 3 . . 2 Reactor 2 | . . . . . . . 6 7 3 Treads 6 | . 17 . . . . 10 1 15 13 Leg 2 | . 2 . . . . . 7 . . Wheel 9 | . 7 28 22 22 13 9 8 . . Device 10 | . . . . . 3 7 14 15 22 Storage 9 | . 14 14 11 11 14 7 7 7 7 Processor 7 | . 13 4 . . 13 7 7 7 7 Protection 8 | . . 8 22 11 8 7 9 7 5 Energy Gun 5 | . 10 10 . . 2 . 9 7 . Energy Cannon 6 | . . . . . 7 14 4 7 13 Ballistic Gun 4 | . 14 17 22 19 3 . . . . Peak Build Rating 74 | 6 9 15 17 18 25 37 61 61 74 Average Rating 36 | 6 7 10 16 16 21 26 44 61 66 On Entrance 25 | 6 6 9 15 17 17 24 37 61 61 Naked Turns . | . . . . . . . . . . Heaviest Build 126 | 14 89 94 95 95 103 102 112 112 126 Greatest Support 95 | 20 40 20 20 20 26 42 95 95 95 Greatest Overweight (x) 36 | . 8 4 4 4 10 9 36 1 1 Average Overweight (x) 3 | . 3 4 4 4 5 5 3 1 . Largest Inventory Capacity 25 | 8 25 25 25 25 25 25 25 25 25 Average Capacity 24 | 8 16 25 25 25 25 25 25 25 25 Most Carried 25 | 6 12 22 25 25 25 18 24 24 25 Average Carried 19 | 6 8 16 22 24 19 16 19 24 23 Final Capacity 25 | 8 25 25 25 25 25 25 25 25 25 Final Carried 25 | 6 11 22 25 25 18 18 24 24 18 Class Distribution -------------------- 73% | Mutant 26% | Scavenger-Mutant Dominant Class ---------------- Mutant | -10/Materials Mutant | -10/Mines Mutant | -9/Materials Mutant | -9/Mines Mutant | -8/Materials Mutant | -7/Factory Scavenger-Mutant | -7/Garrison Mutant | -7/Factory Mutant | -7/Storage Resources | -11 -10 -10 -9 -9 -8 -7 -7 -7 -7 ----------- Run | Yrd Mat Min Mat Min Mat Fac Gar Fac Sto Matter Collected 1784 | 200 177 50 91 140 509 100 269 . 248 Remotely . | . . . . . . . . . . Salvage Created 5289 | . 423 84 100 123 871 505 1656 . 1527 Parts 199 | . 24 2 4 7 44 17 44 . 57 Haulers Intercepted 3 | . 2 . . . 1 . . . . Recyclers Shooed 2 | . . . 1 . 1 . . . . Parts Field Recycled . | . . . . . . . . . . Retrieved Matter . | . . . . . . . . . . Parts Self-Destructed . | . . . . . . . . . . Prevented . | . . . . . . . . . . Kills | -11 -10 -10 -9 -9 -8 -7 -7 -7 -7 ------- Run | Yrd Mat Min Mat Min Mat Fac Gar Fac Sto Combat Hostiles Destroyed 92 | . 6 1 2 10 20 9 19 . 25 Guns 30 | . 6 1 2 . 4 . 16 . 1 Cannons 39 | . . . . . 13 7 1 . 18 AOE 17 | . . . . 10 3 . . . 4 Classes Destroyed 14 | . 4 2 . 3 2 2 1 . . Worker 6 | . . 1 . . 1 3 . . 1 Builder 3 | . 1 . . . 1 . . . 1 Tunneler 1 | . . . . . . 1 . . . Hauler 3 | . 2 . . . 1 . . . . Recycler 7 | . . . . 1 2 1 . . 3 Watcher 5 | . 1 . 1 . 2 . . . 1 Swarmer 18 | . . . . 3 4 4 4 . 3 Grunt 47 | . 6 . 2 . 12 3 10 . 14 Duelist 1 | . . . . . 1 . . . . Sentry 11 | . . 1 . . 2 1 2 . 5 Hunter 4 | . . . . . 1 . 2 . 1 Programmer 3 | . . . . . . 1 . . 2 Heavy 1 | . . . . . . . 1 . . Assembled 7 | . . . . 7 . . . . . Best Kill Streak 10 | . 2 1 1 7 10 5 4 . 7 Combat Bots Only 8 | . 2 1 1 7 8 4 4 . 7 Max Kills in Single Turn 3 | . 1 1 1 3 2 1 1 . 3 Gunslinging . | . . . . . . . . . . Exploded 3 | . . . . 3 1 . . . 3 Melee . | . . . . . . . . . . Uniques/NPCs Destroyed . | . . . . . . . . . . Combat | -11 -10 -10 -9 -9 -8 -7 -7 -7 -7 -------- Run | Yrd Mat Min Mat Min Mat Fac Gar Fac Sto Hostile Shots Fired 867 | . 50 . 25 21 108 72 154 18 419 Missed 302 | . 11 . 6 6 31 33 49 11 155 Damage Taken 7604 | . 507 . 211 195 1302 572 1644 38 3135 Core 1211 | . 102 . 66 6 331 62 209 10 425 Absorbed by Shields . | . . . . . . . . . . Redirected to Shielding 152 | . . . 3 5 43 . 101 . . Core Remaining (%) 70 | 100 . 59 . 82 39 . . . . Volleys Fired 327 | . 49 6 17 8 55 39 89 . 64 Largest 2 | . 2 2 2 1 2 2 2 . 2 Hottest 180 | . 70 60 45 33 135 136 155 . 180 Shots Fired 615 | . 86 12 33 8 101 78 171 . 126 Gun 300 | . 86 12 33 . 33 . 133 . 3 Cannon 303 | . . . . . 64 78 38 . 123 Launcher 12 | . . . . 8 4 . . . . Special . | . . . . . . . . . . Kinetic 131 | . 48 7 33 . 43 . . . . Thermal 413 | . 38 5 . . 54 78 115 . 123 Explosive 9 | . . . . 8 1 . . . . Electromagnetic 62 | . . . . . 3 . 56 . 3 Robot Hit Streak 30 | . 13 5 5 3 16 25 30 . 16 Robot Miss Streak 5 | . 4 1 3 3 5 4 4 . 4 Penetration Max . | . . . . . . . . . . Secondary Targets 5 | . . . . . . . 5 . . Max Gunslinging Chain 1 | . . . . . . . 1 . . Shots Hit Robots 428 | . 58 8 25 2 83 52 118 . 82 Core Hits 255 | . 23 3 6 18 67 17 81 . 40 Critical Kills 3 | . . . . . . 2 . . 1 Critical Parts Destroyed 2 | . . . 2 . . . . . . Critical Strikes 15 | . 6 . 2 . 2 2 2 . 1 Burn 10 | . 6 . . . 2 . 2 . . Meltdown 3 | . . . . . . 2 . . 1 Destroy 2 | . . . 2 . . . . . . Melee Attacks 4 | . . . . . . . 4 . . Impact 4 | . . . . . . . 4 . . Slashing . | . . . . . . . . . . Piercing . | . . . . . . . . . . Sneak Attacks . | . . . . . . . . . . Combat Hostiles . | . . . . . . . . . . Follow-up Attacks . | . . . . . . . . . . Damage Inflicted 11382 | . 689 79 329 707 2395 1125 3010 . 3048 Guns 4180 | . 684 79 329 . 606 . 2435 . 47 Cannons 5427 | . . . . . 1202 1125 346 . 2754 Explosions 1736 | . . . . 707 569 . 229 . 231 Melee . | . . . . . . . . . . Ramming 39 | . 5 . . . 18 . . . 16 Kinetic 1556 | . 364 47 329 . 816 . . . . Thermal 7264 | . 320 32 . . 992 1125 1844 . 2951 Explosive 1076 | . . . . 707 335 . . . 34 Electromagnetic 1447 | . . . . . 234 . 1166 . 47 Impact . | . . . . . . . . . . Slashing . | . . . . . . . . . . Piercing . | . . . . . . . . . . Highest Corruption 9 | . . . . . 1 . 2 2 9 Average Corruption 4 | . . . . . 1 . 2 2 6 Corruption Purged . | . . . . . . . . . . Corruption Blocked . | . . . . . . . . . . Effects 48 | . . . . . 3 . 7 . 38 Message Errors 15 | . . . . . . . 1 . 14 Matter Fused 10 | . . . . . . . 2 . 8 Heat Flow Errors 2 | . . . . . . . . . 2 Energy Discharges 9 | . . . . . 1 . 1 . 7 Parts Fused 2 | . . . . . 1 . 1 . . Data Loss (minor) 6 | . . . . . 1 . . . 5 Data Loss (major) 1 | . . . . . . . . . 1 Misfires 3 | . . . . . . . 2 . 1 Overload Shots 34 | . . . . . . . . . 34 Effects 4 | . . . . . . . . . 4 Energy Bleed 2 | . . . . . . . . . 2 Heat Surge 1 | . . . . . . . . . 1 Short Circuit 1 | . . . . . . . . . 1 Overflow Damage 273 | . . . . 33 90 19 18 . 113 Projectiles 133 | . . . . . 42 19 3 . 69 Explosions 140 | . . . . 33 48 . 15 . 44 Melee . | . . . . . . . . . . Knockbacks 23 | . . . . . 23 . . . . Impact . | . . . . . . . . . . Kinetic 23 | . . . . . 23 . . . . Secondary . | . . . . . . . . . . Self-Inflicted Damage 383 | . . . . 49 109 . 66 . 159 Shots 12 | . . . . 2 5 . 2 . 3 Rammed 8 | . 2 . . . 2 . . . 4 Targets Rammed 8 | . 2 . . . 2 . . . 4 Kicked . | . . . . . . . . . . Crushed . | . . . . . . . . . . Highest Temperature 508 | . 165 20 28 . 210 162 508 . 232 Average Temperature 65 | . 55 14 10 . 60 47 89 . 66 Received Heat Transfer 2523 | . 306 . 114 . 522 159 450 . 972 Effects 5 | . . . . . . . 5 . . Shutdowns 1 | . . . . . . . 1 . . Energy Bleed 1 | . . . . . . . 1 . . Interference 1 | . . . . . . . 1 . . Matter Decay 1 | . . . . . . . 1 . . Damage (minor) 1 | . . . . . . . 1 . . Siege Activations . | . . . . . . . . . . Robots Corrupted 4 | . . . . . . . 4 . . Combat Hostiles . | . . . . . . . . . . Parts Fried 19 | . . . . . 1 . 18 . . Impact Corruptions . | . . . . . . . . . . Robots Melted 8 | . . . . . . 3 3 . 2 Combat Hostiles 6 | . . . . . . 2 2 . 2 Parts Melted 37 | . 1 3 . . 3 11 10 . 9 Heat Transferred 12199 | . 1370 75 . . 1813 1961 3473 . 3507 Parts Sabotaged . | . . . . . . . . . . Parts Stolen . | . . . . . . . . . . Parts Stripped . | . . . . . . . . . . Power Chain Reactions 5 | . . . . . 1 . 2 . 2 Alert | -11 -10 -10 -9 -9 -8 -7 -7 -7 -7 ------- Run | Yrd Mat Min Mat Min Mat Fac Gar Fac Sto Peak Influence 1283 | . 199 56 103 160 322 242 1283 720 795 Initial 673 | . . 31 . 39 62 81 85 673 327 Average 308 | . 76 34 26 114 183 99 521 689 463 Maximum Alert Level 4 | . . . . . 1 1 4 3 3 Low Security (%) 48 | 100 100 100 100 100 66 93 16 . . Level 1 24 | . . . . . 33 6 30 . 47 Level 2 16 | . . . . . . . 27 70 37 Level 3 8 | . . . . . . . 18 30 14 Level 4 2 | . . . . . . . 7 . . Level 5 . | . . . . . . . . . . High Security . | . . . . . . . . . . Max Security . | . . . . . . . . . . Squads Dispatched 16 | . 1 . 4 . 2 2 . . 7 Investigation 3 | . . . 1 . . 1 . . 1 Extermination 3 | . . . . . . 1 . . 2 Reinforcement 7 | . 1 . 3 . 2 . . . 1 Assault 3 | . . . . . . . . . 3 Garrison . | . . . . . . . . . . Intercept . | . . . . . . . . . . Searches Triggered . | . . . . . . . . . . Construction Impeded . | . . . . . . . . . . Haulers Reinforced . | . . . . . . . . . . Active Scanning Responses . | . . . . . . . . . . Cargo Convoy Interrupts . | . . . . . . . . . . Stealth | -11 -10 -10 -9 -9 -8 -7 -7 -7 -7 --------- Run | Yrd Mat Min Mat Min Mat Fac Gar Fac Sto Distress Signals 8 | . 3 . . . 3 . . . 2 Communications Jammed . | . . . . . . . . . . Distress Signals . | . . . . . . . . . . Times Spotted 170 | . 18 2 10 18 28 14 28 1 51 Peak Tracking Total 19 | . 4 2 3 19 7 4 5 1 10 Tactical Retreats 12 | . 1 . 1 . 1 2 1 . 6 Traps | -11 -10 -10 -9 -9 -8 -7 -7 -7 -7 ------- Run | Yrd Mat Min Mat Min Mat Fac Gar Fac Sto Traps Triggered 18 | . . . 1 . . 2 9 . 6 Indirectly . | . . . . . . . . . . Trap Hack Attempts . | . . . . . . . . . . Triggered . | . . . . . . . . . . Disarmed . | . . . . . . . . . . Reprogrammed . | . . . . . . . . . . Reused . | . . . . . . . . . . Traps Extracted . | . . . . . . . . . . Installed . | . . . . . . . . . . Triggered . | . . . . . . . . . . Machines | -11 -10 -10 -9 -9 -8 -7 -7 -7 -7 ---------- Run | Yrd Mat Min Mat Min Mat Fac Gar Fac Sto Machines Disabled 11 | . . . . . 1 1 4 . 5 Max in Single Turn 1 | . . . . . 1 1 1 . 1 Garrison Access 1 | . . . . . . . . . 1 Garrison Relay 1 | . . . . . . . 1 . . Machines Repaired . | . . . . . . . . . . Machines Dismantled 1 | . . . . . . . 1 . . Machines Sabotaged . | . . . . . . . . . . Overloaded Fab Kills . | . . . . . . . . . . Hacking | -11 -10 -10 -9 -9 -8 -7 -7 -7 -7 --------- Run | Yrd Mat Min Mat Min Mat Fac Gar Fac Sto Machines Accessed 12 | . 2 1 . . 1 3 2 . 3 Terminals 7 | . 2 . . . 1 . 2 . 2 Fabricators 1 | . . . . . . 1 . . . Repair Stations . | . . . . . . . . . . Recycling Units 1 | . . . . . . 1 . . . Scanalyzers . | . . . . . . . . . . Garrison Access 2 | . . . . . . 1 . . 1 Total Hacks 21 | . 4 1 . . 3 4 4 . 5 Successful 10 | . 3 1 . . . 2 1 . 3 Failed 11 | . 1 . . . 3 2 3 . 2 Catastrophic 2 | . . . . . . 1 1 . . Database Lockouts . | . . . . . . . . . . Manual 3 | . . . . . 3 . . . . Terminals 15 | . 4 . . . 3 . 4 . 4 Fabricators 1 | . . . . . . 1 . . . Repair Stations . | . . . . . . . . . . Recycling Units 1 | . . . . . . 1 . . . Scanalyzers . | . . . . . . . . . . Garrison Access 3 | . . . . . . 2 . . 1 Terminal Hacks 7 | . 3 1 . . . . 1 . 2 Prototype ID Bank 1 | . 1 . . . . . . . . Open Door 3 | . . 1 . . . . . . 2 Emergency Access Points 1 | . . . . . . . 1 . . Locate Traps 1 | . 1 . . . . . . . . Hauler Manifests 1 | . 1 . . . . . . . . Fabricator Hacks 1 | . . . . . . 1 . . . Build 1 | . . . . . . 1 . . . Repair Station Hacks . | . . . . . . . . . . Recycling Unit Hacks . | . . . . . . . . . . Scanalyzer . | . . . . . . . . . . Garrison Access Hacks 2 | . . . . . . 1 . . 1 Unlock Access 1 | . . . . . . 1 . . . Seal Access 1 | . . . . . . . . . 1 Unauthorized Hacks . | . . . . . . . . . . Terminals . | . . . . . . . . . . Fabricators . | . . . . . . . . . . Repair Stations . | . . . . . . . . . . Recycling Units . | . . . . . . . . . . Scanalyzers . | . . . . . . . . . . Garrison Access . | . . . . . . . . . . Data Cores Recovered . | . . . . . . . . . . Used . | . . . . . . . . . . Hacking Detections 7 | . 1 . . . 1 2 2 . 1 Full Trace Events 1 | . . . . . . . 1 . . Feedback Events . | . . . . . . . . . . Feedback Blocked . | . . . . . . . . . . Robot Schematics Acquired . | . . . . . . . . . . Robots Built . | . . . . . . . . . . Authchips . | . . . . . . . . . . Time . | . . . . . . . . . . Total Robot Build Rating . | . . . . . . . . . . Part Schematics Acquired . | . . . . . . . . . . Parts Built 2 | . . . . . . 2 . . . Authchips . | . . . . . . . . . . Time 117 | . . . . . . 117 . . . Total Part Build Rating 14 | . . . . . . 14 . . . Parts Repaired . | . . . . . . . . . . Time . | . . . . . . . . . . Parts Recycled . | . . . . . . . . . . Recycled Matter . | . . . . . . . . . . Retrieved Matter . | . . . . . . . . . . Retrieved Components . | . . . . . . . . . . Parts Scanalyzed . | . . . . . . . . . . Part Schematics Acquired . | . . . . . . . . . . Parts Damaged . | . . . . . . . . . . Bothacking | -11 -10 -10 -9 -9 -8 -7 -7 -7 -7 ------------ Run | Yrd Mat Min Mat Min Mat Fac Gar Fac Sto Used RIF Installer 2 | . . . . . . . 2 . . Hotswap 1 | . . . . . . . 1 . . Robots Hacked . | . . . . . . . . . . Non-combat . | . . . . . . . . . . Combat . | . . . . . . . . . . Robot Hacks Applied . | . . . . . . . . . . Relay Couplers Released 3 | . . . . . . . 3 . . Machine Destruction 3 | . . . . . . . 3 . . Attached 1 | . . . . . . . . . 1 Fabnet Peak Effective % . | . . . . . . . . . . Robots Rewired 3 | . . . . . . . 3 . . Allies Hacked . | . . . . . . . . . . Hacks Repelled . | . . . . . . . . . . Allies | -11 -10 -10 -9 -9 -8 -7 -7 -7 -7 -------- Run | Yrd Mat Min Mat Min Mat Fac Gar Fac Sto Total Allies 5 | . . . . . . . 3 . 2 Largest Group 3 | . . . . . . . 3 1 2 Highest-Rated Group 96 | . . . . . . . 96 32 62 Highest-Rated Ally 32 | . . . . . . . 32 32 32 Total Orders . | . . . . . . . . . . Ally Attacks 55 | . . . . . . . 30 3 22 Total Damage 1599 | . . . . . . . 1027 98 474 Kills 11 | . . . . . . . 8 1 2 Allies Corrupted . | . . . . . . . . . . Allies Melted . | . . . . . . . . . . Intel | -11 -10 -10 -9 -9 -8 -7 -7 -7 -7 ------- Run | Yrd Mat Min Mat Min Mat Fac Gar Fac Sto Robot Analysis Total . | . . . . . . . . . . Derelict Logs Recovered 1 | . . 1 . . . . . . . Drone Launches . | . . . . . . . . . . Drone Recoveries . | . . . . . . . . . . Exploration | -11 -10 -10 -9 -9 -8 -7 -7 -7 -7 ------------- Run | Yrd Mat Min Mat Min Mat Fac Gar Fac Sto Turns Passed 7753 | 2 700 487 383 192 1033 966 2442 40 1508 Spaces Moved 3154 | 2 299 313 213 120 456 341 929 17 464 Core 1 | . . . . . . . 1 . . Treads 843 | . 104 . . . . 90 168 17 464 Legs 252 | 2 51 . . . . . 199 . . Wheels 2058 | . 144 313 213 120 456 251 561 . . Hover . | . . . . . . . . . . Flight . | . . . . . . . . . . Fastest Speed 120 | 120 120 140 140 140 135 125 125 245 165 Average Speed 189 | 120 168 140 140 140 168 210 206 245 245 Slowest Speed 1850 | 120 320 140 140 140 230 312 1850 245 250 Overloaded Moves . | . . . . . . . . . . Propulsion Burnouts . | . . . . . . . . . . Robots Hopped . | . . . . . . . . . . Cave-ins Triggered . | . . . . . . . . . . Exploration Rate (%) 40 | 1 50 76 21 47 40 9 92 1 71 Regions Visited 9 Branch Regions 3 Pre-discovered Areas 1 | . . . . . . . . . 1 Known Exits Taken 1 | . . . . . . 1 . . . Unknown Exits Taken 7 | 1 1 1 1 1 1 . . 1 . Scrap Searched 4 | . . 2 . 2 . . . . . Spaces Dug 4 | . . . . . . . 1 . 3 Terrain Destroyed 161 | . . . . 82 18 . 1 . 60 Melee 1 | . . . . . . . 1 . . Projectile 32 | . . . . . 2 . . . 30 AOE 128 | . . . . 82 16 . . . 30 Terrain Rammed . | . . . . . . . . . . Walls Destroyed . | . . . . . . . . . . Machines Disabled . | . . . . . . . . . . Actions | -11 -10 -10 -9 -9 -8 -7 -7 -7 -7 --------- Run | Yrd Mat Min Mat Min Mat Fac Gar Fac Sto Total 4278 | 1 412 352 268 134 623 510 1256 16 706 Wait 462 | . 39 12 34 . 58 107 85 . 127 Move 3146 | 1 298 312 212 119 455 341 928 16 464 Hop . | . . . . . . . . . . Pick Up 67 | . 10 14 4 1 12 3 14 . 9 Fast Attach 30 | . . 2 . . 9 8 6 . 5 Attach 51 | . 6 1 1 1 16 4 11 . 11 Detach 7 | . 1 . . . 3 1 . . 2 Swap 24 | . 3 . . 4 1 1 9 . 6 Drop 42 | . 4 5 . 1 12 6 2 . 12 Fire 327 | . 49 6 17 8 55 39 89 . 64 Melee 4 | . . . . . . . 4 . . Ram 2 | . . . . . 2 . . . . Kick . | . . . . . . . . . . Crush 6 | . 2 . . . . . . . 4 Escape Stasis 74 | . . . . . . . 72 . 2 Rewire 30 | . . . . . . . 30 . . Trap . | . . . . . . . . . . Miscellaneous 6 | . . . . . . . 6 . . Route ------- -11/Scrapyard -10/Materials (discovered 2 exits: [*Mat] / *Min) -10/Mines -9/Materials -9/Mines -8/Materials -7/Factory -7/Garrison (discovered 3 exits: [*Fac x3]) -7/Factory -7/Storage (discovered 1 exit: [*Fac]) History --------- Turn | Location | Event 1 | -11/Scrapyard | Discovered new exit (range 1) 3 | -11/Scrapyard | Entered Materials 314 | -10/Materials | Build established: Mutant 353 | -10/Materials | Discovered new exit (range 16) 560 | -10/Materials | Discovered new exit (range 11) 703 | -10/Materials | Entered Mines 710 | -10/Mines | Received a Rocket Launcher from a helpful Derelict 841 | -10/Mines | Found a damaged Exp. Sensor Array with a note attached 844 | -10/Mines | Found Prototype Device 870 | -10/Mines | Joined a pair of Derelicts in attacking an 0b10 outpost 912 | -10/Mines | Learned Materials garrison access intel 1039 | -10/Mines | Met a Derelict who couldn't figure out how to use a Trap Extractor 1173 | -10/Mines | Discovered new exit (range 9) 1190 | -10/Mines | Entered Materials 1190 | -9/Materials | Evolved 2 slots: Power x1, Utility x1 1552 | -9/Materials | Discovered new exit (range 8) 1573 | -9/Materials | Entered Mines 1574 | -9/Mines | Assembled infested the area 1608 | -9/Mines | Destroyed 7 combat bots 1624 | -9/Mines | Met a Derelict bent on vengeance 1745 | -9/Mines | Discovered new exit (range 10) 1765 | -9/Mines | Entered Materials 1765 | -8/Materials | Evolved 2 slots: Utility x2 1766 | -8/Materials | Loaded intel: 1 garrison access location 2336 | -8/Materials | Core integrity fell below 50% 2367 | -8/Materials | Destroyed 8 combat bots 2368 | -8/Materials | Lost 9 parts (2p2n2u3w) 2536 | -8/Materials | Discovered new exit (range 16) 2798 | -8/Materials | Entered Factory 2798 | -7/Factory | Evolved 2 slots: Propulsion x1, Utility x1 2891 | -7/Factory | Identified Exp. Sensor Array 3672 | -7/Factory | Fabricated Graphene Brace (x2) 3764 | -7/Factory | Identified exit to Garrison 3764 | -7/Factory | Entered Garrison 3777 | -7/Garrison | Build established: Scavenger-Mutant 3864 | -7/Garrison | Triggered checkpoint 4059 | -7/Garrison | Triggered checkpoint 4060 | -7/Garrison | Triggered checkpoint 4150 | -7/Garrison | Triggered checkpoint 4180 | -7/Garrison | Triggered checkpoint 4244 | -7/Garrison | Installed Relay Interface Framework 4294 | -7/Garrison | Triggered checkpoint 4332 | -7/Garrison | Lost 3 parts (2n1w) 4350 | -7/Garrison | Discovered new exit (range 14) 4430 | -7/Garrison | Heavy support dispatched to Factory 4620 | -7/Garrison | Discovered new exit (range 10) 4747 | -7/Garrison | Expanded RIF knowledge: Hotswap 4817 | -7/Garrison | Build established: Mutant 4863 | -7/Garrison | Lost 3 parts (1n1u1w) 4888 | -7/Garrison | Triggered checkpoint 4943 | -7/Garrison | Lost 3 parts (1n1u1w) 5263 | -7/Garrison | Build established: Scavenger-Mutant 5384 | -7/Garrison | Triggered checkpoint 5498 | -7/Garrison | Garrison Relay disabled 5543 | -7/Garrison | Heavy support dispatched to Factory 5764 | -7/Garrison | Discovered new exit (range 14) 5817 | -7/Garrison | Rescued a captive Derelict 5820 | -7/Garrison | Rescued a captive Derelict 5879 | -7/Garrison | Lost 3 allies 5984 | -7/Garrison | H-XX Assembler disabled 6206 | -7/Garrison | Entered Factory 6206 | -7/Factory | Accompanied by 1 ally 6214 | -7/Factory | Discovered new exit (range 14) 6246 | -7/Factory | Entered Storage 6246 | -7/Storage | Accompanied by 1 ally 6342 | -7/Storage | Build established: Mutant 6687 | -7/Storage | Learned location of Armory (-4) 6986 | -7/Storage | Core integrity fell below 50% 7434 | -7/Storage | Lost 4 parts (1p1n1u1w) 7446 | -7/Storage | First assault squad dispatched 7500 | -7/Storage | Core integrity fell below 20% 7558 | -7/Storage | Destroyed 7 combat bots 7618 | -7/Storage | Discovered new exit (range 16) 7671 | -7/Storage | Met a pair of Derelict thieves 7754 | -7/Storage | Destroyed by Y-54 Guardian with Gatling Laser Last Messages --------------- area. 07698_ Door malfunctions. 07701_ DI-T20(g) heat spikes uncontrollably. 07701_ Triggered Proton Bomb Trap. 07701_ A bubble of electromagnetic force engulfs the area. 07701_ Chain reaction triggered in Lgt. Nuclear Core. 07701_ DI-T20(g) overheating. 07702_ DI-T20(g) heat damages Imp. Heat Sink, Carbon-fiber Leg, Beamcaster. 07702_ DI-T20(g) overheating. 07703_ DI-T20(g) heat damages Imp. Heat Sink, Carbon-fiber Leg, Imp. Heat Sink. 07709_ System corrupted: Energy discharge (-57). 07711_ Lgt. Nuclear Core destroyed. 07729_ System corrupted: Matter fused (-5). 07739_ Cooling System destroyed. 07746_ Dropped Cld. Particle Cannon. 07751_ M-28 Smith repairs Y-54 Guardian. Map ----- +----------------------------------------------------+ | ##???????????????######### #?# # """ # # | | #????????????##?# ## #?# # """ # # | | #???#####??###### """ ## #?# # """ # # | | #???#"""#??# ## """ ## #?####### # # | | ##??##"Y"#### ## """ ## #??????# """ # # | | ##### ## #? ## #??????## """ # + | | / """" ###+#??? ?# +???????# """ # # | | ##### """" # ######+#### #???????# # # | | #??# """" + % #?????###/##/#####%[ # | | #??# """" # ###### % #?????## % # | | #??# ## ####### ######## # | | #########+## # + # | | # #= %# "" # ######+ ######+## | | # """ ####%# """ # [ ## #??## | | # """ #??# #! T" + ## #??#T | | # """ #?## # "" # ## """ """ #??##" " | | # #?## #%"" # ]] ## """ """ #??? | | ####+##+#####!# # ]] + """ """ #?#]] | | ???# %# ##### # ## ] ] | | ???# #####+#?#???# # %###] ] | | #### ##?? ????# + #?###### | | %% ##?? ?### ####+##+####??????? | | ##? """ ## #??? #?????????? | | ### """ ## #??? #?????????? | | + """ ## ##Y##+### #??? #?????????? | | ##/### ## ??# @b Y ## #?????????? | | # #########?????# g #? #?????????? | | # # #?????????????# % +? / ????????? | | # #! #?????????????# t#?### # ???????? | | # # !#?????????????# !!#???? #?????????? | | +% + !#?????????????# !!#?????##+#?????????? | | # # #?????????????########??????????????????? | | # #! #???????????????????????????????????????? | | # #####???????????????????????????????????????? | | # #???????????????????????????????????????????? | | # #???????????????????????????????????????????? | | #+##+#???????????????????????????????????????????? | | #???????????????????????????????????????????? | | " #???????????????????????????????????????????? | | "" #???????????????????????????????????????????? | | "" #???????????????????????????????????????????? | | =!" #???????????????????????????????????????????? | | [[" #???????????????????????????????????????????? | | "" #???????????????????????????????????????????? | | #???????????????????????????????????????????? | | ######???????????????????????????????????????????? | | ?????????????????????????????????????????????????? | | ?????????????????????????????????????????????????? | | ?????????????????????????????????????????????????? | | ?????????????????????????????????????????????????? | +----------------------------------------------------+ Best States ------------- Heat Dissipation 75 Energy Generation 36 Energy Capacity 380 Matter Stores 400 Matter Capacity 400 Sight Range 18 Terrain Scan Density 10 Armor Coverage 150 Core Shielding 20 Propulsion Shielding 66 Utility Shielding 33 Evasion (%) 55 Targeting Accuracy 16 Recoil Reduction 3 Item Schematics ----------------- None Robot Schematics ------------------ None Fabricated ------------ Graphene Brace | x2 | -7/Factory | Preloaded Alien Tech Used ----------------- None Achievements -------------- None Challenges ------------ None Game ------ Seed VoltaicRocketShockpuncher Manual? 0 Play Time 00:44:17 Cumulative 147.2 hours Start 2024.10.31 @ 10:28:49 End 2024.10.31 @ 11:11:26 Sessions 1 Manual Loads 0 Difficulty Rogue Special Mode None Game No. 244 Rogue 243 Adventurer 1 Explorer 0 Win Type - Total 2 Types 2/0/0/0/0/0/0/0/0 Lore% 73 Gallery% 70 Achievement% 52 Wizard Run 0 Options --------- Layout 1 ASCII 0 Keyboard 0 Movement Mouse Keybinds 0 Fullscreen 2 Font 20/SmallcapsGlow Map View 54x42 Zoom Use 0% Tactical HUD 1 Map Filters NONE Filters NONE Steam 0 RUN: 371c42c5-6051-4b46-90ab-7c39029fccdc